fUSD/lending_fUSD_20241221
["ID","MTS","AMOUNT","RATE_DAILY","PERIOD"]
[346212084,1734775920182,-576.11,0.00021095,2]
[346212085,1734775920192,-682.72,0.00021095,2]
[346212086,1734775920202,-500.0,0.00021095,2]
[346212087,1734775920212,-947.84,0.00021095,2]
[346212088,1734775920222,-608.13,0.00021095,2]
[346212089,1734775920234,-2207.4,0.00021095,2]
[346212090,1734775920244,-616.43,0.00021095,2]
[346212091,1734775920254,-500.0,0.00021095,2]
[346212092,1734775920264,-641.08,0.00021095,2]
[346212093,1734775920275,-703.62,0.00021095,2]
[346212094,1734775920284,-819.35,0.00021095,2]
[346212095,1734775920297,-1708.42,0.00021095,2]
[346212096,1734775920307,-827.89,0.00021095,2]
[346212097,1734775920317,-1594.45,0.00021095,2]
[346212098,1734775920327,-877.93,0.00021095,2]
[346212099,1734775920337,-500.0,0.00021095,2]
[346212100,1734775920347,-1310.13,0.00021095,2]
[346212101,1734775920357,-500.0,0.00021095,2]
[346212102,1734775920367,-663.97,0.00021095,2]
[346212103,1734775920376,-500.0,0.00021095,2]
[346212104,1734775920386,-200.0,0.00021096,2]
[346212105,1734775920395,-1966.0,0.000211,2]
[346212106,1734775920405,-562.044662,0.0002115,2]
[346212107,1734775920414,-1216.6111971,0.00021151,2]
[346212108,1734775920424,-150.0,0.00021151,2]
[346212109,1734775920433,-150.0,0.00021151,2]
[346212110,1734775920443,-150.0,0.00021151,2]
[346212111,1734775920453,-150.0,0.00021182,4]
[346212112,1734775920462,-1000.0,0.000212,2]
[346212113,1734775920471,-293.681,0.00021216,2]
[346212114,1734775920481,-3886.0,0.00021216,2]
[346212115,1734775920491,-13754.0,0.00021216,2]
[346212116,1734775920500,-1170.0,0.00021216,2]
[346212117,1734775920510,-718.98,0.00021232,2]
[346212118,1734775920732,-1216.6111971,0.00021233,2]
[346212119,1734775920742,-11303.44970049,0.00021233,2]
[346212120,1734775920752,-150.0,0.0002124,4]
[346212121,1734775920762,-191.98120253,0.00021269,2]
[346212122,1734775920772,-150.0,0.00021269,4]
[346212123,1734775920781,-1017.37,0.00021273,2]
[346212124,1734775920792,-929.73057511,0.00021293,2]
[346212125,1734775920802,-162.31403312,0.00021304,10]
[346212126,1734775920812,-1190.47792184,0.00021304,10]
[346212127,1734775920821,-7747.36710277,0.00021304,10]
[346212128,1734775920831,-2547.02914773,0.00021304,10]
[346212129,1734775920840,-184.0,0.00021304,2]
[346212130,1734775920850,-150.0,0.00021313,4]
[346212131,1734775920860,-1216.6111971,0.00021342,2]
[346212132,1734775920870,-150.0,0.00021357,4]
[346212133,1734775920879,-300.0,0.00021368,2]
[346212134,1734775920888,-1315.92517,0.00021369,2]
[346212135,1734775920897,-2060.745603,0.00021369,2]
[346212136,1734775920907,-153.090772,0.00021369,2]
[346212137,1734775920916,-500.0,0.00021369,2]
[346212138,1734775920925,-500.0,0.00021369,2]
[346212139,1734775920935,-500.0,0.00021369,2]
[346212140,1734775920945,-151.0,0.00021369,2]
[346212141,1734775920954,-500.0,0.00021369,2]
[346212142,1734775920964,-500.0,0.00021369,2]
[346212143,1734775920974,-500.0,0.00021369,2]
[346212144,1734775920983,-500.0,0.00021369,2]
[346212145,1734775920993,-500.0,0.00021369,2]
[346212146,1734775921002,-500.0,0.00021369,2]
[346212147,1734775921013,-151.0,0.00021369,2]
[346212148,1734775921023,-181.407563,0.00021369,2]
[346212149,1734775921032,-726.79,0.00021369,2]
[346212150,1734775921042,-151.0,0.00021369,2]
[346212151,1734775921055,-532.67,0.00021369,2]
[346212152,1734775921064,-500.0,0.00021369,2]
[346212153,1734775921074,-256.137742,0.00021369,2]
[346212154,1734775921084,-500.0,0.00021369,2]
[346212155,1734775921095,-694.79,0.00021369,2]
[346212156,1734775921105,-152.714066,0.00021369,2]
[346212157,1734775921115,-545.1,0.00021369,2]
[346212158,1734775921124,-500.0,0.00021369,2]
[346212159,1734775921136,-500.0,0.00021369,2]
[346212160,1734775921146,-500.0,0.00021369,2]
[346212161,1734775921156,-500.0,0.00021369,2]
[346212162,1734775921166,-500.0,0.00021369,2]
[346212163,1734775921177,-500.0,0.00021369,2]
[346212164,1734775921187,-500.0,0.00021369,2]
[346212165,1734775921197,-725.56,0.00021369,2]
[346212166,1734775921207,-617.66,0.00021369,2]
[346212167,1734775921217,-516.49889982,0.00021369,2]
[346212168,1734775921227,-628.09,0.00021369,2]
[346212169,1734775921239,-500.0,0.00021369,2]
[346212170,1734775921248,-151.0,0.00021369,2]
[346212171,1734775921258,-500.0,0.00021369,2]
[346212172,1734775921268,-500.0,0.00021369,2]
[346212173,1734775921277,-709.26,0.00021369,2]
[346212174,1734775921287,-500.0,0.00021369,2]
[346212175,1734775921299,-709.06,0.00021369,2]
[346212176,1734775921309,-500.0,0.00021369,2]
[346212177,1734775921319,-832.53,0.00021369,2]
[346212178,1734775921329,-505.57020839,0.00021369,2]
[346212179,1734775921339,-500.0,0.00021369,2]
[346212180,1734775921349,-500.0,0.00021369,2]
[346212181,1734775921359,-500.0,0.00021369,2]
[346212182,1734775921368,-500.0,0.00021369,2]
[346212183,1734775921377,-500.0,0.00021369,2]
[346212184,1734775921387,-151.0,0.00021369,2]
[346212185,1734775921396,-500.0,0.00021369,2]
[346212186,1734775921405,-2005.535627,0.00021369,2]
[346212187,1734775921415,-500.0,0.00021369,2]
[346212188,1734775921425,-500.0,0.00021369,2]
[346212189,1734775921435,-268.99830179,0.00021369,2]
[346212190,1734775921446,-500.0,0.00021369,2]
[346212191,1734775921456,-500.0,0.00021369,2]
[346212192,1734775921466,-500.0,0.00021369,2]
[346212193,1734775921476,-219.023894,0.00021369,2]
[346212194,1734775921486,-219.023894,0.00021369,2]
[346212195,1734775921495,-500.0,0.00021369,2]
[346212196,1734775921504,-151.0,0.00021369,2]
[346212197,1734775921514,-154.76273,0.00021369,2]
[346212198,1734775921524,-500.0,0.00021369,2]
[346212199,1734775921533,-500.0,0.00021369,2]
[346212200,1734775921544,-500.0,0.00021369,2]
[346212201,1734775921553,-151.0,0.00021369,2]
[346212202,1734775921562,-500.0,0.00021369,2]
[346212203,1734775921572,-500.0,0.00021369,2]
[346212204,1734775921582,-3009.64,0.00021369,2]
[346212205,1734775921591,-1290.83,0.00021369,2]
[346212206,1734775921600,-500.0,0.00021369,2]
[346212207,1734775921610,-500.0,0.00021369,2]
[346212208,1734775921619,-1763.28,0.00021369,2]
[346212209,1734775921629,-1110.5,0.00021369,2]
[346212210,1734775921639,-500.0,0.00021369,2]
[346212211,1734775921648,-151.0,0.00021369,2]
[346212212,1734775921658,-554.22,0.00021369,2]
[346212213,1734775921667,-500.0,0.00021369,2]
[346212214,1734775921677,-500.0,0.00021369,2]
[346212215,1734775921686,-501.06048384,0.00021369,2]
[346212216,1734775921696,-1310.29,0.00021369,2]
[346212217,1734775921705,-500.0,0.00021369,2]
[346212218,1734775921715,-500.0,0.00021369,2]
[346212219,1734775921724,-500.0,0.00021369,2]
[346212220,1734775921734,-782.42,0.00021369,2]
[346212221,1734775921744,-500.0,0.00021369,2]
[346212222,1734775921753,-500.0,0.00021369,2]
[346212223,1734775921763,-500.0,0.00021369,2]
[346212224,1734775921774,-500.0,0.00021369,2]
[346212225,1734775921784,-500.0,0.00021369,2]
[346212226,1734775921795,-1344.59,0.00021369,2]
[346212227,1734775921805,-500.0,0.00021369,2]
[346212228,1734775921814,-500.0,0.00021369,2]
[346212229,1734775921824,-500.0,0.00021369,2]
[346212230,1734775921833,-500.0,0.00021369,2]
[346212231,1734775921843,-500.0,0.00021369,2]
[346212232,1734775921852,-500.0,0.00021369,2]
[346212233,1734775921862,-997.25,0.00021369,2]
[346212234,1734775921872,-500.0,0.00021369,2]
[346212235,1734775921882,-681.25,0.00021369,2]
[346212236,1734775921891,-2209.2,0.00021369,2]
[346212237,1734775921901,-600.53,0.00021369,2]
[346212238,1734775921911,-500.0,0.00021369,2]
[346212239,1734775921921,-500.0,0.00021369,2]
[346212240,1734775921931,-500.0,0.00021369,2]
[346212241,1734775921941,-500.0,0.00021369,2]
[346212242,1734775921951,-1052.88,0.00021369,2]
[346212243,1734775921962,-500.0,0.00021369,2]
[346212244,1734775921972,-500.0,0.00021369,2]
[346212245,1734775921983,-1457.83,0.00021369,2]
[346212246,1734775921995,-500.0,0.00021369,2]
[346212247,1734775922006,-828.45,0.00021369,2]
[346212248,1734775922016,-1146.14,0.00021369,2]
[346212249,1734775922026,-500.0,0.00021369,2]
[346212250,1734775922036,-1250.39,0.00021369,2]
[346212251,1734775922048,-500.0,0.00021369,2]
[346212252,1734775922062,-500.0,0.00021369,2]
[346212253,1734775922071,-500.0,0.00021369,2]
[346212254,1734775922081,-1419.2,0.00021369,2]
[346212255,1734775922091,-758.56,0.00021369,2]
[346212256,1734775922103,-174.71085984,0.00021369,2]
[346212257,1734775922112,-500.0,0.00021369,2]
[346212258,1734775922122,-639.25,0.00021369,2]
[346212259,1734775922133,-635.85,0.00021369,2]
[346212260,1734775922143,-500.0,0.00021369,2]
[346212261,1734775922153,-178.653876,0.00021369,2]
[346212262,1734775922166,-756.25,0.00021369,2]
[346212263,1734775922176,-656.52,0.00021369,2]
[346212264,1734775922186,-178.653876,0.00021369,2]
[346212265,1734775922196,-500.0,0.00021369,2]
[346212266,1734775922206,-679.69,0.00021369,2]
[346212267,1734775922216,-694.71,0.00021369,2]
[346212268,1734775922226,-500.0,0.00021369,2]
[346212269,1734775922237,-593.08062349,0.00021369,2]
[346212270,1734775922248,-500.0,0.00021369,2]
[346212271,1734775922258,-500.0,0.00021369,2]
[346212272,1734775922269,-696.96,0.00021369,2]
[346212273,1734775922279,-500.0,0.00021369,2]
[346212274,1734775922289,-500.0,0.00021369,2]
[346212275,1734775922303,-529.72,0.00021369,2]
[346212276,1734775922314,-509.07766045,0.00021369,2]
[346212277,1734775922325,-500.0,0.00021369,2]
[346212278,1734775922334,-1305.68,0.00021369,2]
[346212279,1734775922344,-845.31,0.00021369,2]
[346212280,1734775922355,-853.8,0.00021369,2]
[346212281,1734775922366,-1048.63,0.00021369,2]
[346212282,1734775922376,-1477.89,0.00021369,2]
[346212283,1734775922387,-500.0,0.00021369,2]
[346212284,1734775922397,-1084.07,0.00021369,2]
[346212285,1734775922406,-500.0,0.00021369,2]
[346212286,1734775922417,-788.48,0.00021369,2]
[346212287,1734775922427,-501.04551053,0.00021369,2]
[346212288,1734775922437,-151.0,0.00021369,2]
[346212289,1734775922447,-743.94,0.00021369,2]
[346212290,1734775922457,-1099.89,0.00021369,2]
[346212291,1734775922468,-500.0,0.00021369,2]
[346212292,1734775922478,-500.0,0.00021369,2]
[346212293,1734775922488,-500.0,0.00021369,2]
[346212294,1734775922498,-780.67,0.00021369,2]
[346212295,1734775922508,-500.0,0.00021369,2]
[346212296,1734775922518,-512.5104105,0.00021369,2]
[346212297,1734775922527,-1161.79,0.00021369,2]
[346212298,1734775922537,-532.5,0.00021369,2]
[346212299,1734775922550,-500.0,0.00021369,2]
[346212300,1734775922559,-515.71,0.00021369,2]
[346212301,1734775922568,-500.0,0.00021369,2]
[346212302,1734775922579,-707.57,0.00021369,2]
[346212303,1734775922589,-500.0,0.00021369,2]
[346212304,1734775922599,-549.28,0.00021369,2]
[346212305,1734775922609,-500.0,0.00021369,2]
[346212306,1734775922619,-500.0,0.00021369,2]
[346212307,1734775922629,-500.0,0.00021369,2]
[346212308,1734775922638,-500.0,0.00021369,2]
[346212309,1734775922648,-514.37,0.00021369,2]
[346212310,1734775922658,-612.84,0.00021369,2]
[346212311,1734775922667,-639.17,0.00021369,2]
[346212312,1734775922677,-151.0,0.00021369,2]
[346212313,1734775922686,-500.0,0.00021369,2]
[346212314,1734775922696,-500.0,0.00021369,2]
[346212315,1734775922705,-500.0,0.00021369,2]
[346212316,1734775922714,-502.2315213,0.00021369,2]
[346212317,1734775922723,-721.82,0.00021369,2]
[346212318,1734775922733,-500.0,0.00021369,2]
[346212319,1734775922743,-500.0,0.00021369,2]
[346212320,1734775922752,-500.0,0.00021369,2]
[346212321,1734775922761,-500.0,0.00021369,2]
[346212322,1734775922770,-500.0,0.00021369,2]
[346212323,1734775922779,-1097.82,0.00021369,2]
[346212324,1734775922788,-1102.35,0.00021369,2]
[346212325,1734775922800,-500.0,0.00021369,2]
[346212326,1734775922809,-500.0,0.00021369,2]
[346212327,1734775922818,-702.98,0.00021369,2]
[346212328,1734775922827,-517.71,0.00021369,2]
[346212329,1734775922836,-500.0,0.00021369,2]
[346212330,1734775922846,-911.98,0.00021369,2]
[346212331,1734775922855,-500.0,0.00021369,2]
[346212332,1734775922864,-579.4058498,0.00021369,2]
[346212333,1734775922873,-285.62,0.00021369,2]
[346212334,1734775922883,-904.16,0.00021369,2]
[346212335,1734775922892,-516.66,0.00021369,2]
[346212336,1734775922901,-500.0,0.00021369,2]
[346212337,1734775922910,-500.0,0.00021369,2]
[346212338,1734775922919,-500.0,0.00021369,2]
[346212339,1734775922929,-881.76,0.00021369,2]
[346212340,1734775922939,-718.98,0.00021369,2]
[346212341,1734775922948,-500.0,0.00021369,2]
[346212342,1734775922958,-500.0,0.00021369,2]
[346212343,1734775922967,-1196.0,0.00021369,2]
[346212344,1734775922977,-604.96,0.00021369,2]
[346212345,1734775922986,-500.0,0.00021369,2]
[346212346,1734775922996,-500.0,0.00021369,2]
[346212347,1734775923005,-500.0,0.00021369,2]
[346212348,1734775923015,-630.9,0.00021369,2]
[346212349,1734775923024,-500.0,0.00021369,2]
[346212350,1734775923034,-500.0,0.00021369,2]
[346212351,1734775923043,-671.72,0.00021369,2]
[346212352,1734775923057,-500.0,0.00021369,2]
[346212353,1734775923067,-501.98236884,0.00021369,2]
[346212354,1734775923076,-207.53648,0.00021369,2]
[346212355,1734775923086,-836.17,0.00021369,2]
[346212356,1734775923097,-954.09,0.00021369,2]
[346212357,1734775923106,-500.0,0.00021369,2]
[346212358,1734775923116,-500.0,0.00021369,2]
[346212359,1734775923126,-500.0,0.00021369,2]
[346212360,1734775923135,-590.50189427,0.00021369,2]
[346212361,1734775923145,-502.14563845,0.00021369,2]
[346212362,1734775923155,-500.0,0.00021369,2]
[346212363,1734775923164,-509.68,0.00021369,2]
[346212364,1734775923174,-796.49,0.00021369,2]
[346212365,1734775923184,-500.0,0.00021369,2]
[346212366,1734775923194,-500.0,0.00021369,2]
[346212367,1734775923204,-613.54,0.00021369,2]
[346212368,1734775923214,-500.0,0.00021369,2]
[346212369,1734775923224,-500.0,0.00021369,2]
[346212370,1734775923322,-1107.03,0.00021369,2]
[346212371,1734775923333,-632.72,0.00021369,2]
[346212372,1734775923342,-500.0,0.00021369,2]
[346212373,1734775923353,-560.9,0.00021369,2]
[346212374,1734775923363,-1187.28,0.00021369,2]
[346212375,1734775923372,-500.0,0.00021369,2]
[346212376,1734775923382,-500.0,0.00021369,2]
[346212377,1734775923392,-500.0,0.00021369,2]
[346212378,1734775923401,-886.49,0.00021369,2]
[346212379,1734775923411,-500.0,0.00021369,2]
[346212380,1734775923421,-546.544357,0.00021369,2]
[346212381,1734775923431,-935.47,0.00021369,2]
[346212382,1734775923441,-500.0,0.00021369,2]
[346212383,1734775923451,-500.0,0.00021369,2]
[346212384,1734775923461,-583.48,0.00021369,2]
[346212385,1734775923471,-546.544357,0.00021369,2]
[346212386,1734775923481,-500.0,0.00021369,2]
[346212387,1734775923492,-1195.31,0.00021369,2]
[346212388,1734775923502,-208.35921,0.00021369,2]
[346212389,1734775923513,-711.4,0.00021369,2]
[346212390,1734775923522,-500.0,0.00021369,2]
[346212391,1734775923532,-500.0,0.00021369,2]
[346212392,1734775923545,-868.6,0.00021369,2]
[346212393,1734775923556,-151.0,0.00021369,2]
[346212394,1734775923567,-208.35921,0.00021369,2]
[346212395,1734775923577,-556.56,0.00021369,2]
[346212396,1734775923587,-500.0,0.00021369,2]
[346212397,1734775923598,-500.0,0.00021369,2]
[346212398,1734775923607,-1259.03,0.00021369,2]
[346212399,1734775923617,-566.68,0.00021369,2]
[346212400,1734775923626,-526.17,0.00021369,2]
[346212401,1734775923635,-500.0,0.00021369,2]
[346212402,1734775923644,-500.0,0.00021369,2]
[346212403,1734775923654,-688.11,0.00021369,2]
[346212404,1734775923664,-982.15,0.00021369,2]
[346212405,1734775923674,-982.5,0.00021369,2]
[346212406,1734775923684,-500.0,0.00021369,2]
[346212407,1734775923694,-268.63301494,0.00021369,2]
[346212408,1734775923704,-700.81,0.00021369,2]
[346212409,1734775923713,-500.0,0.00021369,2]
[346212410,1734775923723,-500.0,0.00021369,2]
[346212411,1734775923733,-500.0,0.00021369,2]
[346212412,1734775923743,-908.4,0.00021369,2]
[346212413,1734775923753,-500.0,0.00021369,2]
[346212414,1734775923763,-615.00275183,0.00021369,2]
[346212415,1734775923774,-970.68,0.00021369,2]
[346212416,1734775923783,-1203.95,0.00021369,2]
[346212417,1734775923794,-500.0,0.00021369,2]
[346212418,1734775923804,-500.0,0.00021369,2]
[346212419,1734775923814,-604.93,0.00021369,2]
[346212420,1734775923825,-1020.15,0.00021369,2]
[346212421,1734775923836,-500.0,0.00021369,2]
[346212422,1734775923848,-527.89218386,0.00021369,2]
[346212423,1734775923858,-500.0,0.00021369,2]
[346212424,1734775923869,-977.35,0.00021369,2]
[346212425,1734775923880,-588.29,0.00021369,2]
[346212426,1734775923890,-2100.81,0.00021369,2]
[346212427,1734775923901,-500.0,0.00021369,2]
[346212428,1734775923912,-1137.46,0.00021369,2]
[346212429,1734775923922,-500.0,0.00021369,2]
[346212430,1734775923932,-500.0,0.00021369,2]
[346212431,1734775923942,-954.46,0.00021369,2]
[346212432,1734775923953,-500.0,0.00021369,2]
[346212433,1734775923963,-500.0,0.00021369,2]
[346212434,1734775923974,-151.0,0.00021369,2]
[346212435,1734775923984,-500.0,0.00021369,2]
[346212436,1734775923994,-159.090281,0.00021369,2]
[346212437,1734775924004,-588.07,0.00021369,2]
[346212438,1734775924014,-865.9,0.00021369,2]
[346212439,1734775924023,-159.090281,0.00021369,2]
[346212440,1734775924033,-500.0,0.00021369,2]
[346212441,1734775924045,-500.0,0.00021369,2]
[346212442,1734775924060,-1839.2,0.00021369,2]
[346212443,1734775924072,-500.0,0.00021369,2]
[346212444,1734775924082,-841.64,0.00021369,2]
[346212445,1734775924092,-500.0,0.00021369,2]
[346212446,1734775924103,-500.0,0.00021369,2]
[346212447,1734775924112,-500.0,0.00021369,2]
[346212448,1734775924122,-1434.78,0.00021369,2]
[346212449,1734775924133,-753.67,0.00021369,2]
[346212450,1734775924144,-152.86188766,0.00021369,2]
[346212451,1734775924154,-500.0,0.00021369,2]
[346212452,1734775924164,-500.0,0.00021369,2]
[346212453,1734775924174,-1084.441464,0.00021369,2]
[346212454,1734775924184,-500.0,0.00021369,2]
[346212455,1734775924193,-916.41,0.00021369,2]
[346212456,1734775924203,-500.0,0.00021369,2]
[346212457,1734775924213,-1084.441464,0.00021369,2]
[346212458,1734775924223,-500.0,0.00021369,2]
[346212459,1734775924234,-1229.82,0.00021369,2]
[346212460,1734775924244,-538.68,0.00021369,2]
[346212461,1734775924253,-500.0,0.00021369,2]
[346212462,1734775924263,-2061.42,0.00021369,3]
[346212463,1734775924272,-1289.82,0.00021369,2]
[346212464,1734775924282,-152.97961451,0.00021369,2]
[346212465,1734775924291,-3068.56,0.00021369,2]
[346212466,1734775924305,-816.83,0.00021369,2]
[346212467,1734775924314,-1681.21,0.00021369,2]
[346212468,1734775924325,-515.01,0.00021369,2]
[346212469,1734775924335,-564.73,0.00021369,2]
[346212470,1734775924345,-821.19,0.00021369,2]
[346212471,1734775924355,-557.730986,0.00021369,2]
[346212472,1734775924366,-500.0,0.00021369,2]
[346212473,1734775924376,-503.14,0.00021369,2]
[346212474,1734775924385,-500.0,0.00021369,2]
[346212475,1734775924395,-557.730986,0.00021369,2]
[346212476,1734775924406,-500.0,0.00021369,2]
[346212477,1734775924416,-223.03185742,0.00021369,2]
[346212478,1734775924426,-500.0,0.00021369,2]
[346212479,1734775924436,-500.0,0.00021369,2]
[346212480,1734775924446,-500.0,0.00021369,2]
[346212481,1734775924456,-528.97,0.00021369,2]
[346212482,1734775924466,-1802.69,0.00021369,2]
[346212483,1734775924475,-500.0,0.00021369,2]
[346212484,1734775924484,-1428.18,0.00021369,2]
[346212485,1734775924493,-500.0,0.00021369,2]
[346212486,1734775924503,-1530.46,0.00021369,2]
[346212487,1734775924512,-517.49,0.00021369,2]
[346212488,1734775924522,-648.56988268,0.00021369,2]
[346212489,1734775924532,-2857.77,0.00021369,2]
[346212490,1734775924542,-1035.1,0.00021369,2]
[346212491,1734775924555,-500.0,0.00021369,2]
[346212492,1734775924564,-5744.66,0.00021369,2]
[346212493,1734775924575,-3645.89,0.00021369,2]
[346212494,1734775924585,-500.0,0.00021369,2]
[346212495,1734775924595,-7770.52,0.00021369,2]
[346212496,1734775924604,-5825.61,0.00021369,2]
[346212497,1734775924614,-500.0,0.00021369,2]
[346212498,1734775924624,-500.0,0.00021369,2]
[346212499,1734775924633,-500.0,0.00021369,2]
[346212500,1734775924644,-676.76,0.00021369,2]
[346212501,1734775924654,-655.72,0.00021369,2]
[346212502,1734775924663,-500.0,0.00021369,2]
[346212503,1734775924673,-6344.44,0.00021369,2]
[346212504,1734775924683,-500.0,0.00021369,2]
[346212505,1734775924692,-151.0,0.00021369,2]
[346212506,1734775924701,-2388.26,0.00021369,2]
[346212507,1734775924711,-1144.61,0.00021369,2]
[346212508,1734775924721,-500.0,0.00021369,2]
[346212509,1734775924730,-501.79,0.00021369,2]
[346212510,1734775924740,-5318.41,0.00021369,2]
[346212511,1734775924749,-999.0,0.00021369,2]
[346212512,1734775924759,-515.28,0.00021369,2]
[346212513,1734775924768,-500.0,0.00021369,2]
[346212514,1734775924778,-1263.34,0.00021369,2]
[346212515,1734775924788,-876.73,0.00021369,2]
[346212516,1734775924800,-500.0,0.00021369,2]
[346212517,1734775924810,-935.87,0.00021369,2]
[346212518,1734775924820,-2971.78,0.00021369,2]
[346212519,1734775924830,-1648.585471,0.00021369,2]
[346212520,1734775924840,-500.0,0.00021369,2]
[346212521,1734775924849,-6748.31,0.00021369,2]
[346212522,1734775924859,-1648.585471,0.00021369,2]
[346212523,1734775924868,-500.0,0.00021369,2]
[346212524,1734775924878,-1217.48,0.00021369,2]
[346212525,1734775924888,-3504.24,0.00021369,2]
[346212526,1734775924898,-1058.32,0.00021369,2]
[346212527,1734775924908,-1129.8,0.00021369,2]
[346212528,1734775924918,-500.0,0.00021369,2]
[346212529,1734775924927,-3097.42,0.00021369,2]
[346212530,1734775924937,-1490.71,0.00021369,2]
[346212531,1734775924946,-500.0,0.00021369,2]
[346212532,1734775924955,-151.0,0.00021369,2]
[346212533,1734775924964,-676.92,0.00021369,2]
[346212534,1734775924974,-1565.87,0.00021369,2]
[346212535,1734775924983,-500.0,0.00021369,2]
[346212536,1734775924993,-859.98,0.00021369,2]
[346212537,1734775925002,-1458.03,0.00021369,2]
[346212538,1734775925012,-500.0,0.00021369,2]
[346212539,1734775925021,-500.0,0.00021369,2]
[346212540,1734775925030,-4052.02,0.00021369,2]
[346212541,1734775925039,-500.0,0.00021369,2]
[346212542,1734775925056,-500.0,0.00021369,2]
[346212543,1734775925065,-632.15,0.00021369,2]
[346212544,1734775925075,-858.9,0.00021369,2]
[346212545,1734775925084,-830.33,0.00021369,2]
[346212546,1734775925095,-1009.36,0.00021369,2]
[346212547,1734775925104,-1002.4,0.00021369,2]
[346212548,1734775925114,-2321.55,0.00021369,2]
[346212549,1734775925123,-600.34,0.00021369,2]
[346212550,1734775925133,-1104.22,0.00021369,2]
[346212551,1734775925143,-764.36,0.00021369,2]
[346212552,1734775925152,-500.0,0.00021369,2]
[346212553,1734775925162,-151.0,0.00021369,2]
[346212554,1734775925172,-4224.23,0.00021369,2]
[346212555,1734775925182,-1180.1,0.00021369,2]
[346212556,1734775925191,-633.6,0.00021369,2]
[346212557,1734775925201,-634.17,0.00021369,2]
[346212558,1734775925211,-342.523263,0.00021369,2]
[346212559,1734775925221,-245.15098499,0.00021369,2]
[346212560,1734775925233,-1585.36,0.00021369,2]
[346212561,1734775925243,-898.1,0.00021369,2]
[346212562,1734775925253,-500.0,0.00021369,2]
[346212563,1734775925264,-4622.95,0.00021369,2]
[346212564,1734775925274,-1021.92,0.00021369,2]
[346212565,1734775925284,-342.523263,0.00021369,2]
[346212566,1734775925295,-691.59,0.00021369,2]
[346212567,1734775925306,-1424.85,0.00021369,2]
[346212568,1734775925317,-151.0,0.00021369,2]
[346212569,1734775925327,-2578.29,0.00021369,2]
[346212570,1734775925337,-151.0,0.00021369,2]
[346212571,1734775925347,-2579.16,0.00021369,2]
[346212572,1734775925357,-500.0,0.00021369,2]
[346212573,1734775925367,-754.63,0.00021369,2]
[346212574,1734775925377,-500.0,0.00021369,2]
[346212575,1734775925387,-788.9,0.00021369,2]
[346212576,1734775925396,-519.02090165,0.00021369,2]
[346212577,1734775925405,-500.0,0.00021369,2]
[346212578,1734775925415,-1154.56,0.00021369,2]
[346212579,1734775925424,-2172.59,0.00021369,2]
[346212580,1734775925434,-500.0,0.00021369,2]
[346212581,1734775925443,-1815.99,0.00021369,2]
[346212582,1734775925452,-564.41,0.00021369,2]
[346212583,1734775925463,-500.0,0.00021369,2]